lending/lending_fUSD_20251121
["ID","MTS","AMOUNT","RATE_DAILY","PERIOD"]
[394562912,1763715032601,-158.76,0.000168,2]
[394562913,1763715032611,-8129.98564219,0.000168,2]
[394562914,1763715032620,-1000.0,0.000168,6]
[394562915,1763715032630,-196.0999009,0.000168,2]
[394562916,1763715032641,-2500.0,0.000168,2]
[394562917,1763715032650,-193.0,0.00016816,2]
[394562918,1763715032661,-8129.98564214,0.00016819,2]
[394562919,1763715032671,-193.0,0.00016821,2]
[394562946,1763715032938,-267.52,0.00016825,2]
[394562947,1763715032958,-1054.7472608,0.00016826,2]
[394562948,1763715032968,-4079.77187,0.0001683,2]
[394562949,1763715032978,-317.42996192,0.00016836,2]
[394562950,1763715032987,-8129.98564214,0.00016837,2]
[394562951,1763715032997,-8129.98564214,0.00016856,2]
[394562952,1763715033006,-500.0,0.00016863,2]
[394562953,1763715033016,-500.0,0.00016863,2]
[394562954,1763715033025,-200.0,0.00016863,2]
[394562955,1763715033035,-500.0,0.00016863,2]
[394562956,1763715033045,-500.0,0.00016863,2]
[394562957,1763715033054,-500.0,0.00016864,2]
[394562958,1763715033064,-500.0,0.00016864,2]
[394562959,1763715033073,-500.0,0.00016864,2]
[394562960,1763715033082,-500.0,0.00016864,2]
[394562961,1763715033091,-500.0,0.00016864,2]
[394562962,1763715033100,-500.0,0.00016864,2]
[394562963,1763715033110,-500.0,0.00016864,2]
[394562964,1763715033119,-500.0,0.00016864,2]
[394562965,1763715033129,-500.0,0.00016864,2]
[394562966,1763715033138,-500.0,0.00016864,2]
[394562967,1763715033147,-500.0,0.00016864,2]
[394562968,1763715033156,-500.0,0.00016864,2]
[394562969,1763715033167,-200.0,0.00016864,2]
[394562970,1763715033178,-200.0,0.00016864,2]
[394562971,1763715033187,-500.0,0.00016873,2]
[394562972,1763715033197,-174.04942058,0.00016873,2]
[394562973,1763715033207,-500.0,0.00016873,2]
[394562974,1763715033216,-5690.55445489,0.00016873,2]
[394562975,1763715033225,-228.90536202,0.00016873,2]
[394562976,1763715033234,-4525.16898765,0.00016875,2]
[394562977,1763715033283,-666.0,0.00016875,2]
[394562978,1763715033363,-2938.81665449,0.00016875,2]
[394562979,1763715033377,-160.0,0.0001688,3]
[394562980,1763715033387,-907.34687878,0.00016883,2]
[394562981,1763715033441,-327.64321756,0.00016883,2]
[394562982,1763715033503,-3226.6486847,0.00016883,2]
[394562983,1763715033515,-450.92077701,0.00016883,2]
[394562984,1763715033543,-736.62476627,0.00016883,2]
[394562987,1763715038289,-41.37013052,0.00016883,2]
[394562988,1763715038299,-193.0,0.00016886,2]
[394562989,1763715038310,-5690.55445484,0.00016893,2]
[394562990,1763715038320,-8129.98564214,0.00016893,2]
[394562991,1763715038330,-316.0811018,0.00016896,2]
[394562992,1763715038339,-500.0,0.00016896,2]
[394562993,1763715038349,-500.0,0.00016896,2]
[394562994,1763715038359,-500.0,0.00016896,2]
[394562995,1763715038369,-500.0,0.00016896,2]
[394562996,1763715038379,-500.0,0.00016896,2]
[394562997,1763715038389,-500.0,0.00016896,2]
[394562998,1763715038398,-500.0,0.00016896,2]
[394562999,1763715038407,-500.0,0.00016896,2]
[394563000,1763715038420,-500.0,0.00016896,2]
[394563001,1763715038429,-500.0,0.00016896,2]
[394563002,1763715038439,-257.75035521,0.00016896,2]
[394563003,1763715038450,-500.0,0.00016896,2]
[394563004,1763715038459,-500.0,0.00016896,2]
[394563005,1763715038469,-500.0,0.00016896,2]
[394563006,1763715038479,-500.0,0.00016896,2]
[394563007,1763715038489,-500.0,0.00016896,2]
[394563008,1763715038499,-500.0,0.00016896,2]
[394563010,1763715038508,-500.0,0.00016896,2]
[394563012,1763715038518,-500.0,0.00016896,2]
[394563013,1763715038527,-500.0,0.00016896,2]
[394563014,1763715038536,-500.0,0.00016896,2]
[394563015,1763715038546,-500.0,0.00016896,2]
[394563017,1763715038555,-500.0,0.00016896,2]
[394563019,1763715038564,-500.0,0.00016896,2]
[394563021,1763715038574,-500.0,0.00016896,2]
[394563023,1763715038583,-500.0,0.00016896,2]
[394563025,1763715038593,-500.0,0.00016896,2]
[394563027,1763715038602,-500.0,0.00016896,2]
[394563029,1763715038612,-500.0,0.00016896,2]
[394563030,1763715038622,-288.59436364,0.00016897,2]
[394563032,1763715038631,-151.0,0.00016897,2]
[394563034,1763715038641,-917.07,0.00016897,2]
[394563036,1763715038651,-151.0,0.00016898,2]
[394563038,1763715038659,-151.0,0.00016898,2]
[394563040,1763715038671,-500.0,0.00016899,2]
[394563042,1763715038681,-500.0,0.00016899,2]
[394563044,1763715038690,-500.0,0.00016899,2]
[394563047,1763715038700,-500.0,0.00016899,2]
[394563048,1763715038710,-500.0,0.00016899,2]
[394563050,1763715038719,-500.0,0.00016899,2]
[394563051,1763715038729,-517.05634255,0.00016899,2]
[394563053,1763715038738,-500.0,0.00016899,2]
[394563054,1763715038747,-1200.0,0.000169,6]
[394563055,1763715038757,-1000.0,0.000169,2]
[394563056,1763715038767,-171.20189164,0.000169,2]
[394563057,1763715038777,-1678.08068141,0.000169,2]
[394563058,1763715038787,-1000.0,0.000169,2]
[394563059,1763715038796,-862.2916864,0.000169,2]
[394563060,1763715038807,-331.58567781,0.000169,2]
[394563061,1763715038816,-626.1424552,0.000169,2]
[394563062,1763715038825,-154.42752271,0.000169,2]
[394563063,1763715038835,-193.0,0.00016901,2]
[394563064,1763715038844,-5690.55445484,0.00016903,2]
[394563065,1763715038853,-8129.98564214,0.00016912,2]
[394563066,1763715038863,-5690.55445484,0.00016913,2]
[394563067,1763715038876,-5690.55445484,0.00016923,2]
[394563068,1763715038887,-8129.98564214,0.00016931,2]
[394563069,1763715038896,-5690.55445484,0.00016933,2]
[394563070,1763715038907,-193.0,0.00016935,2]
[394563071,1763715038918,-150.0,0.00016937,2]
[394563072,1763715038927,-500.0,0.00016937,2]
[394563073,1763715038937,-200.0,0.00016937,2]
[394563074,1763715038947,-207.82405323,0.00016937,2]
[394563075,1763715038957,-200.0,0.00016937,2]
[394563076,1763715038966,-500.0,0.00016937,2]
[394563077,1763715038976,-500.0,0.00016937,2]
[394563078,1763715038986,-500.0,0.00016937,2]
[394563079,1763715038995,-1581.75452667,0.00016937,2]
[394563080,1763715039005,-500.0,0.00016937,2]
[394563081,1763715039014,-500.0,0.00016937,2]
[394563082,1763715039024,-150.0,0.00016937,2]
[394563083,1763715039034,-150.0,0.00016937,2]
[394563084,1763715039043,-500.0,0.00016937,2]
[394563085,1763715039053,-200.0,0.00016937,2]
[394563086,1763715039063,-5690.55445484,0.00016943,2]
[394563087,1763715039072,-193.0,0.00016945,2]
[394563088,1763715039082,-8129.98564214,0.00016949,2]
[394563089,1763715039092,-5690.55445484,0.00016953,2]
[394563090,1763715039101,-196.09990088,0.00016957,2]
[394563091,1763715039111,-739.0,0.00016959,2]
[394563092,1763715039121,-5690.55445484,0.00016963,2]
[394563093,1763715039131,-515.01217463,0.00016967,2]
[394563094,1763715039141,-8129.98564214,0.00016968,2]
[394563095,1763715039151,-500.0,0.00016973,2]
[394563096,1763715039160,-500.0,0.00016973,2]
[394563097,1763715039172,-312.5306204,0.00016973,2]
[394563098,1763715039181,-500.0,0.00016973,2]
[394563099,1763715039192,-500.0,0.00016973,2]
[394563100,1763715039202,-500.0,0.00016973,2]
[394563101,1763715039212,-150.0,0.00016973,2]
[394563102,1763715039222,-200.0,0.00016973,2]
[394563103,1763715039233,-200.0,0.00016973,2]
[394563104,1763715039243,-200.0,0.00016973,2]
[394563105,1763715039252,-150.0,0.00016986,2]
[394563106,1763715039263,-228.90536196,0.00016987,2]
[394563107,1763715039274,-1061.9,0.00016998,2]
[394563108,1763715039283,-1246.91508659,0.00016999,5]
[394563109,1763715039294,-1246.91508659,0.00016999,5]
[394563110,1763715039304,-300.0,0.00016999,2]
[394563111,1763715039314,-300.0,0.00016999,2]
[394563112,1763715039324,-500.0,0.00016999,2]
[394563113,1763715039335,-500.0,0.00016999,2]
[394563114,1763715039344,-500.0,0.00016999,2]
[394563115,1763715039356,-500.0,0.00016999,2]
[394563116,1763715039367,-500.0,0.00016999,2]
[394563117,1763715039377,-500.0,0.00016999,2]
[394563118,1763715039387,-300.0,0.00016999,2]
[394563119,1763715039396,-1061.9,0.00016999,2]
[394563120,1763715039406,-1061.9,0.00016999,2]
[394563121,1763715039416,-1061.9,0.00016999,2]
[394563122,1763715039427,-1061.9,0.00016999,2]
[394563123,1763715039436,-1061.9,0.00016999,2]
[394563124,1763715039446,-1061.9,0.00016999,2]
[394563125,1763715039456,-1061.9,0.00016999,2]
[394563126,1763715039470,-1061.9,0.00016999,2]
[394563127,1763715039479,-1061.9,0.00016999,2]
[394563128,1763715039489,-1061.9,0.00016999,2]
[394563129,1763715039499,-1061.9,0.00016999,2]
[394563130,1763715039509,-1061.9,0.00016999,2]
[394563131,1763715039520,-1061.9,0.00016999,2]
[394563132,1763715039529,-1061.9,0.00016999,2]
[394563133,1763715039538,-1061.9,0.00016999,2]
[394563134,1763715039548,-1061.9,0.00016999,2]
[394563135,1763715039557,-1061.9,0.00016999,2]
[394563136,1763715039567,-1061.9,0.00016999,2]
[394563137,1763715039576,-1061.9,0.00016999,2]
[394563138,1763715039585,-1061.9,0.00016999,2]
[394563139,1763715039594,-1061.9,0.00016999,2]
[394563140,1763715039603,-1061.9,0.00016999,2]
[394563141,1763715039613,-1062.0026177,0.00016999,2]
[394563142,1763715039622,-500.0,0.00016999,2]
[394563143,1763715039631,-500.0,0.00016999,2]
[394563144,1763715039642,-500.0,0.00016999,2]
[394563145,1763715039651,-500.0,0.00016999,2]
[394563146,1763715039661,-500.0,0.00016999,2]
[394563147,1763715039675,-500.0,0.00016999,2]
[394563148,1763715039684,-500.0,0.00016999,2]
[394563149,1763715039694,-500.0,0.00016999,2]
[394563150,1763715039703,-500.0,0.00016999,2]
[394563151,1763715039713,-500.0,0.00016999,2]
[394563152,1763715039722,-500.0,0.00016999,2]
[394563153,1763715039732,-500.0,0.00016999,2]
[394563154,1763715039741,-500.0,0.00016999,2]
[394563155,1763715039751,-500.0,0.00016999,2]
[394563156,1763715039761,-500.0,0.00016999,2]
[394563157,1763715039770,-500.0,0.00016999,2]
[394563158,1763715039779,-500.0,0.00016999,2]
[394563159,1763715039789,-500.0,0.00016999,2]
[394563160,1763715039798,-500.0,0.00016999,2]
[394563161,1763715039807,-500.0,0.00016999,2]
[394563162,1763715039818,-500.0,0.00016999,2]
[394563163,1763715039827,-230.9322547,0.00016999,2]
[394563164,1763715039836,-500.0,0.00016999,2]
[394563165,1763715039845,-500.0,0.00016999,2]
[394563166,1763715039856,-407.62527131,0.00016999,2]
[394563167,1763715039866,-500.0,0.00016999,2]
[394563168,1763715039879,-500.0,0.00016999,2]
[394563169,1763715039888,-500.0,0.00016999,2]
[394563170,1763715039898,-500.0,0.00016999,2]
[394563171,1763715039907,-500.0,0.00016999,2]
[394563172,1763715039917,-500.0,0.00016999,2]
[394563173,1763715039929,-500.0,0.00016999,2]
[394563174,1763715039939,-500.0,0.00016999,2]
[394563175,1763715039948,-500.0,0.00016999,2]
[394563176,1763715039959,-500.0,0.00016999,2]
[394563177,1763715039968,-500.0,0.00016999,2]
[394563178,1763715039978,-500.0,0.00016999,2]
[394563179,1763715039988,-500.0,0.00016999,2]
[394563180,1763715039998,-500.0,0.00016999,2]
[394563181,1763715040008,-500.0,0.00016999,2]
[394563182,1763715040018,-500.0,0.00016999,2]
[394563183,1763715040028,-500.0,0.00016999,2]
[394563184,1763715040037,-500.0,0.00016999,2]
[394563185,1763715040047,-443.15926361,0.00016999,2]
[394563186,1763715040056,-500.0,0.00016999,2]
[394563187,1763715040066,-323.88911799,0.00016999,2]
[394563188,1763715040075,-585.39103979,0.00016999,2]
[394563189,1763715040085,-500.0,0.00016999,2]
[394563190,1763715040095,-192.49330734,0.00016999,2]
[394563191,1763715040104,-500.0,0.00016999,2]
[394563192,1763715040114,-500.0,0.00016999,2]
[394563194,1763715040124,-500.0,0.00016999,2]
[394563195,1763715040133,-500.0,0.00016999,2]
[394563197,1763715040142,-5849.0,0.00017,2]
[394563198,1763715040152,-469736.27706849,0.00017,2]
[394563251,1763715041466,-436.14542831,0.00017,2]
[394563257,1763715041517,-396.71618048,0.00017,2]
[394563260,1763715041529,-33746.97600001,0.00017,2]
[394563269,1763715041616,-6077.96059996,0.00017,2]
[394563272,1763715041627,-2113.74383151,0.00017,2]
[394563274,1763715041638,-4370.01321377,0.00017,2]
[394563276,1763715041650,-731.39609495,0.00017,2]
[394563282,1763715041702,-2847.65569904,0.00017,2]
[394563283,1763715041713,-288.05210084,0.00017,2]
[394563284,1763715041724,-473.68269085,0.00017,2]
[394563286,1763715041736,-252.11285946,0.00017,2]
[394563287,1763715041755,-763.45759774,0.00017,2]
[394563307,1763715044011,-2503.12,0.00017,2]
[394563358,1763715045500,-163.8,0.0001699,2]
[394563359,1763715045511,-133908.07516868,0.00017,2]
[394563362,1763715045523,-1182.47375131,0.00017,2]
[394563364,1763715045538,-1304.05550314,0.00017,2]
[394563458,1763715046408,-256.06,0.00017,2]
[394563460,1763715046418,-1115.8401823,0.00017,2]
[394563468,1763715046483,-303.8,0.00017,2]
[394563470,1763715046495,-302.51228284,0.00017,2]
[394564338,1763715151316,500.0,0.00017,30]
[394564339,1763715208240,300.0,0.00016082,2]
[394564347,1763715386620,1000.0,0.00013699,2]
[394564348,1763715388855,155.15,7.89e-05,2]
[394564350,1763715506338,250.0,0.00015804,2]
[394564351,1763715592901,1852.42,0.00015768,2]
[394564352,1763715676791,346.02,0.00015767,2]
[394564355,1763715760647,-175.26184035,0.00016174,2]
[394564356,1763715760671,-300.0,0.0001624,2]
[394564357,1763715760694,-300.0,0.00016274,2]
[394564358,1763715760716,-300.0,0.00016354,2]
[394564359,1763715760740,-300.0,0.00016437,2]
[394564360,1763715760763,-1200.0,0.00016437,2]
[394564361,1763715760785,-300.0,0.00016437,2]
[394564362,1763715760808,-7343.93,0.00016438,2]
[394564363,1763715760834,-300.0,0.000165,6]
[394564364,1763715760857,-600.0,0.000166,6]
[394564365,1763715760878,-346.02,0.00016643,2]
[394564366,1763715760900,-2500.0,0.00016656,2]
[394564367,1763715760923,-258.1069139,0.00016657,2]
[394564368,1763715760946,-1647.53509626,0.00016657,2]
[394564369,1763715760969,-1000.0,0.000167,6]
[394564370,1763715760991,-300.0,0.00016702,2]
[394564371,1763715761013,-251.81,0.00016738,2]
[394564372,1763715761036,-756.76,0.00016746,3]
[394564373,1763715761058,-151.0,0.00016753,2]
[394564374,1763715761081,-300.0,0.00016754,2]
[394564375,1763715761107,-550.0,0.00016754,2]
[394564376,1763715761134,-500.0,0.00016755,2]
[394564377,1763715761159,-500.0,0.00016755,2]
[394564378,1763715761185,-500.0,0.00016755,2]
[394564379,1763715761210,-500.0,0.00016755,2]
[394564380,1763715761236,-500.0,0.00016755,2]
[394564381,1763715761260,-500.0,0.00016755,2]
[394564382,1763715761285,-500.0,0.00016755,2]
[394564383,1763715761309,-500.0,0.00016755,2]
[394564384,1763715761334,-500.0,0.00016755,2]
[394564385,1763715761360,-500.0,0.00016755,2]
[394564386,1763715761386,-500.0,0.00016755,2]
[394564387,1763715761411,-500.0,0.00016755,2]
[394564388,1763715761434,-500.0,0.00016755,2]
[394564389,1763715761459,-500.0,0.00016755,2]
[394564390,1763715761483,-500.0,0.00016755,2]
[394564391,1763715761507,-500.0,0.00016755,2]
[394564392,1763715761532,-500.0,0.00016755,2]
[394564393,1763715761556,-500.0,0.00016755,2]
[394564394,1763715761584,-500.0,0.00016755,2]
[394564395,1763715761610,-500.0,0.00016755,2]
[394564396,1763715761635,-500.0,0.00016755,2]
[394564397,1763715761660,-248.35648732,0.00016755,2]
[394564398,1763715761684,-500.0,0.00016755,2]
[394564399,1763715761709,-500.0,0.00016755,2]
[394564400,1763715761732,-500.0,0.00016755,2]
[394564401,1763715761756,-500.0,0.00016755,2]
[394564402,1763715761783,-500.0,0.00016755,2]
[394564403,1763715761810,-500.0,0.00016755,2]
[394564404,1763715761837,-500.0,0.00016755,2]
[394564405,1763715761861,-500.0,0.00016755,2]
[394564406,1763715761887,-500.0,0.00016755,2]
[394564407,1763715761912,-500.0,0.00016755,2]
[394564408,1763715761939,-71.21966217,0.00016755,2]
[394564409,1763715811158,6434.65,0.00016097,2]
[394564411,1763715826766,3565.36,0.00016097,2]
[394564412,1763715826795,2869.24,0.00016097,2]
[394564413,1763715847470,200.0,0.00015898,2]
[394564414,1763715849835,1192.44449903,0.00016097,2]
[394564415,1763715850381,1581.75452667,0.00016097,2]
[394564416,1763715857041,1034.07963541,0.00016097,2]
[394564417,1763715881948,166.66,0.00015099,2]
[394564418,1763715882116,166.66,0.00015417,2]
[394564419,1763715882526,166.66,0.00015735,2]
[394564420,1763715882754,166.66,0.00016053,2]
[394564422,1763715915116,150.0,0.00015288,2]
[394564423,1763715915407,150.0,0.00015288,2]
[394564424,1763715915505,150.0,0.00015288,2]
[394564425,1763715922676,150.0,0.00015288,2]
[394564426,1763715922913,150.0,0.00015288,2]
[394564427,1763715923394,150.0,0.00015288,2]
[394564428,1763715936241,150.0,0.00015288,2]
[394564429,1763715936291,150.0,0.00015288,2]
[394564430,1763715936376,150.0,0.00015288,2]
[394564431,1763715939509,150.0,0.00015288,2]
[394564439,1763716187842,-500.0,0.000165,6]
[394564440,1763716200719,955.85133889,0.00015637,2]
[394564441,1763716200742,414.57866111,0.00015637,2]
[394564446,1763716231494,-150.0,0.00016137,2]
[394564447,1763716231504,-150.0,0.00016137,2]
[394564448,1763716231518,-300.0,0.00016195,2]
[394564449,1763716231528,-250.0,0.00016254,2]
[394564450,1763716231538,-166.66,0.00016371,2]
[394564451,1763716231548,-368.02939047,0.00016445,2]
[394564452,1763716231558,-300.0,0.00016458,2]
[394564453,1763716231568,-300.0,0.00016458,2]
[394564454,1763716231577,-151.0,0.00016545,2]
[394564455,1763716231587,-550.0,0.00016547,2]
[394564456,1763716231597,-300.0,0.00016547,2]
[394564457,1763716231607,-220.85586896,0.00016547,2]
[394564458,1763716231635,-979.14413104,0.00016547,2]
[394564459,1763716231645,-300.0,0.00016547,2]
[394564460,1763716231656,-39458.47896726,0.00016548,2]
[394564461,1763716231668,-1254.41808677,0.00016548,2]
[394564462,1763716231681,-1650.0,0.00016548,2]
[394564463,1763716231704,-382.35999,0.00016548,2]
[394564464,1763716231716,-1725.18461794,0.00016548,2]
[394564487,1763716232732,-408.68509829,0.00016547,2]
[394564488,1763716232743,-500.0,0.00016547,2]
[394564489,1763716232752,-6653.64862571,0.00016548,2]
[394564490,1763716237602,-639.13506413,0.00016547,2]
[394564491,1763716237612,-500.0,0.00016547,2]
[394564492,1763716237621,-500.0,0.00016547,2]
[394564493,1763716237631,-500.0,0.00016547,2]
[394564494,1763716237640,-500.0,0.00016547,2]
[394564495,1763716237650,-481.31402092,0.00016547,2]
[394564496,1763716237659,-6298.66545048,0.00016548,2]
[394564699,1763716239646,-3258.7404697,0.00016548,2]
[394564701,1763716239657,-3829.98099585,0.00016548,2]
[394564703,1763716239668,-10622.44246987,0.00016548,2]
[394564705,1763716239680,-18624.73384326,0.00016548,2]
[394564708,1763716239698,-772.25867176,0.00016548,2]
[394564727,1763716240046,-524886.1153114,0.00016548,2]
[394564729,1763716240057,-587.85157652,0.00016548,2]
[394564731,1763716240067,-5891.64739631,0.00016548,2]
[394564733,1763716240078,-1007.87207713,0.00016548,2]
[394564735,1763716240087,-331.35694766,0.00016556,2]
[394564737,1763716240098,-500.0,0.00016573,2]
[394564738,1763716240108,-549.96908235,0.00016573,2]
[394564739,1763716240119,-500.0,0.00016573,2]
[394564740,1763716240129,-500.0,0.00016573,2]
[394564741,1763716240139,-500.81426442,0.00016573,2]
[394564742,1763716240149,-500.0,0.00016573,2]
[394564743,1763716240159,-500.0,0.00016573,2]
[394564744,1763716240169,-500.0,0.00016573,2]
[394564745,1763716240179,-500.0,0.00016573,2]
[394564746,1763716240189,-200.66593972,0.00016573,2]
[394564747,1763716240206,-608.62593854,0.00016573,2]
[394564748,1763716240216,-508.70074188,0.00016573,2]
[394564749,1763716240226,-601.00917912,0.00016573,2]
[394564750,1763716240236,-500.0,0.00016573,2]
[394564751,1763716240248,-5891.64739627,0.00016587,2]
[394564752,1763716240261,-151.97090635,0.00016598,2]
[394564753,1763716240271,-222.0,0.00016598,2]
[394564754,1763716240282,-1100.0,0.000166,6]
[394564755,1763716240293,-246.95,0.00016602,2]
[394564756,1763716240303,-163.0,0.00016602,2]
[394564757,1763716240313,-5891.64739627,0.00016626,2]
[394564758,1763716240323,-1129.7654,0.0001663,2]
[394564759,1763716240335,-957.93602807,0.00016632,2]
[394564760,1763716240345,-151.0,0.00016645,2]
[394564761,1763716240355,-151.0,0.00016645,2]
[394564762,1763716240366,-172.45,0.00016646,2]
[394564763,1763716240376,-261.66181204,0.00016647,2]
[394564764,1763716240386,-163633.9870782,0.00016648,2]
[394564765,1763716240400,-229606.303096,0.00016648,2]
[394564766,1763716240410,-3437.3498456,0.00016648,2]
[394564767,1763716240421,-151.0,0.00016648,2]
[394564768,1763716240431,-151.0,0.00016648,2]
[394564769,1763716240441,-566.821076,0.00016648,2]
[394564770,1763716240453,-566.821076,0.00016648,2]
[394564771,1763716240463,-957.486529,0.00016648,2]
[394564772,1763716240473,-957.486529,0.00016648,2]
[394564773,1763716240482,-566.821076,0.00016648,2]
[394564774,1763716240492,-566.821076,0.00016648,2]
[394564775,1763716240502,-435.308615,0.00016648,2]
[394564776,1763716240511,-957.486529,0.00016648,2]
[394564777,1763716240521,-435.308615,0.00016648,2]
[394564778,1763716240531,-957.486529,0.00016648,2]
[394564779,1763716240540,-435.308615,0.00016648,2]
[394564780,1763716240550,-435.308615,0.00016648,2]
[394564781,1763716240560,-151.0,0.00016648,2]
[394564782,1763716240570,-151.0,0.00016648,2]
[394564783,1763716240579,-151.0,0.00016648,2]
[394564784,1763716240589,-151.0,0.00016648,2]
[394564785,1763716240602,-761.785818,0.00016648,2]
[394564786,1763716240612,-151.0,0.00016648,2]
[394564787,1763716240621,-168.886823,0.00016648,2]
[394564788,1763716240631,-186.593926,0.00016648,2]
[394564789,1763716240640,-761.785818,0.00016648,2]
[394564790,1763716240650,-452.018918,0.00016648,2]
[394564791,1763716240659,-168.886823,0.00016648,2]
[394564792,1763716240669,-761.785818,0.00016648,2]
[394564793,1763716240679,-242.910237,0.00016648,2]
[394564794,1763716240688,-168.886823,0.00016648,2]
[394564795,1763716240698,-151.0,0.00016648,2]
[394564796,1763716240708,-452.018918,0.00016648,2]
[394564797,1763716240717,-761.785818,0.00016648,2]
[394564798,1763716240728,-168.886823,0.00016648,2]
[394564800,1763716240737,-452.018918,0.00016648,2]
[394564801,1763716240747,-242.910237,0.00016648,2]
[394564802,1763716240759,-452.018918,0.00016648,2]
[394564803,1763716240769,-242.910237,0.00016648,2]
[394564804,1763716240779,-242.910237,0.00016648,2]
[394564805,1763716240791,-151.0,0.00016648,2]
[394564806,1763716240800,-151.0,0.00016648,2]
[394564807,1763716240810,-447.0,0.00016649,2]
[394564808,1763716240821,-1000.0,0.00016656,2]
[394564809,1763716240830,-213.07,0.00016657,2]
[394564810,1763716240840,-560.0,0.00016658,2]
[394564811,1763716240850,-5891.64739627,0.00016665,2]
[394564812,1763716240860,-500.0,0.00016673,2]
[394564813,1763716240871,-500.0,0.00016673,2]
[394564814,1763716240882,-501.13130562,0.00016673,2]
[394564815,1763716240892,-501.21941397,0.00016673,2]
[394564816,1763716240902,-214.0,0.00016682,2]
[394564817,1763716240912,-166.66,0.00016689,2]
[394564818,1763716240922,-1700.0,0.000167,6]
[394564819,1763716240932,-5891.64739627,0.00016704,2]
[394564820,1763716240942,-10030.63376371,0.00016711,2]
[394564821,1763716240956,-240.0,0.00016716,2]
[394564822,1763716240967,-1007.87207713,0.00016717,2]
[394564823,1763716240976,-10030.63376371,0.00016738,2]
[394564824,1763716240987,-151.0,0.00016741,2]
[394564825,1763716240997,-5891.64739627,0.00016744,2]
[394564826,1763716241007,-331.35694762,0.00016748,2]
[394564827,1763716241017,-16935.77792094,0.00016755,2]
[394564828,1763716241027,-500.0,0.00016755,2]
[394564829,1763716241037,-500.0,0.00016755,2]
[394564830,1763716241047,-500.0,0.00016755,2]
[394564831,1763716241057,-500.0,0.00016755,2]
[394564832,1763716241067,-500.0,0.00016755,2]
[394564833,1763716241078,-649.91,0.00016755,2]
[394564834,1763716241088,-500.0,0.00016755,2]
[394564835,1763716241370,-500.0,0.00016755,2]
[394564836,1763716241380,-1263.19,0.00016755,2]
[394564837,1763716241390,-500.0,0.00016755,2]
[394564838,1763716241399,-505.39826263,0.00016755,2]
[394564839,1763716241408,-500.0,0.00016755,2]
[394564840,1763716241419,-500.0,0.00016755,2]
[394564841,1763716241430,-339.95410953,0.00016755,2]
[394564842,1763716241439,-500.0,0.00016755,2]
[394564843,1763716241451,-151.0,0.00016756,2]
[394564844,1763716241460,-200.261009,0.00016756,2]
[394564845,1763716241470,-151.0,0.00016756,2]
[394564846,1763716241480,-10030.63376371,0.00016765,2]
[394564847,1763716241490,-597.57535508,0.00016773,2]
[394564848,1763716241499,-500.0,0.00016773,2]
[394564849,1763716241509,-500.0,0.00016773,2]
[394564850,1763716241518,-594.14905244,0.00016773,2]
[394564851,1763716241528,-500.0,0.00016773,2]
[394564852,1763716241538,-500.0,0.00016773,2]
[394564853,1763716241547,-500.0,0.00016773,2]
[394564854,1763716241557,-500.0,0.00016773,2]
[394564855,1763716241566,-502.14834927,0.00016773,2]